Cogmind - Beta 11.1 *** ADVENTURER MODE // 2022.08.22 @ 04:30:07 Player: Ms Vella Result: Destroyed by S-43 Plague with Heavy Machine Gun Performance ------------- Evolutions (6) 3000 Regions Visited (22) 4400 Robots Destroyed (192) 960 Value Destroyed (8837) 8837 Prototype IDs (52) 1040 Alien Tech Used (2) 400 Bonus (3105) 3105 TOTAL SCORE: 21742 Bonus ------- Follower Combat Kills 1166 Met Data Miner 300 Met Zhirov 300 Met Warlord at Base 500 MAIN.C Attacked Warlord 500 Warlord Defense Kills 600 Friendly Fire -261 Cogmind --------- Core Integrity 0/1150 Matter 258/300 Energy 525/600 System Corruption 2% Temperature Cool (0) Movement Core (800) Ox15 Location -3/Proximity Caves Parts ------- > --- POWER (2) -------- (None) > --- PROPULSION (4) --- (None) > --- UTILITY (10) ----- High-capacity Storage Unit Advanced Energy Well Spectral Analyzer Improved Target Analyzer Armor Integrity Analyzer Advanced Reaction Control System > --- WEAPON (3) ------- (None) > --- INVENTORY (20) --- High-capacity Storage Unit High-capacity Storage Unit High-capacity Matter Pod (200) High-capacity Matter Pod (200) Makeshift Hacking Suite Advanced Hacking Suite Improved Recalibrator Transdimensional Reconstructor Remote Datajack Phasing Sabre Peak State ------------ > --- POWER ------------ Neutrino Core Heavy Antimatter Reactor > --- PROPULSION ------- Flexi-carbon Leg Myomer Leg Myomer Leg Myomer Leg > --- UTILITY ---------- Advanced Heat Sink High-capacity Storage Unit Spectral Analyzer Improved Target Analyzer Armor Integrity Analyzer Experimental Cloaking Device Improved Heavy Armor Plating Advanced Drone Bay > --- WEAPON ----------- Beamcaster Heavy Beamcaster KE Penetrator > --- INVENTORY -------- Myomer Leg High-capacity Storage Unit High-capacity Storage Unit High-capacity Matter Pod High-capacity Matter Pod Makeshift ECM Suite Makeshift Hacking Suite Authchip [R/Combat] Improved Recalibrator Transdimensional Reconstructor Improved Arc Projector Variable Charge Gun Vortex Rail Vortex Rail Matter Neutralizer Vortex Cannon Vortex Cannon Heavy Gauss Cannon Remote Datajack Phasing Sabre [Rating: 124] Favorites ----------- Power Light Angular Momentum Engine Engine Light Angular Momentum Engine Power Core Enhanced Fission Core Reactor Light Antimatter Reactor Propulsion Flexi-carbon Leg Treads Light Treads Leg Flexi-carbon Leg Wheel Wheel Hover Unit Cooled Gravmag System Utility High-capacity Storage Unit Device Improved Cooling System Storage High-capacity Storage Unit Processor Improved Target Analyzer Hackware Hacking Suite Protection Hardened Medium Armor Plating Weapon Beamcaster Energy Gun Beamcaster Energy Cannon Neutron Cannon Ballistic Gun Assault Rifle Ballistic Cannon Assault Cannon Launcher Shock Bomb Launcher Special Weapon Remote Datajack Impact Weapon Powered Hammer Slashing Weapon Phasing Sabre Build | -11 -10 -10 -10 -9 -8 -7 -7 -7 -7 -6 -6 -6 -5 -5 -5 -5 -4 -4 -4 -4 -4 -3 ------- Run | Scr Mat Min Exi Min Mat Fac Low Low Dat Pro Fac Ext Fac Upp Upp War Pro Fac Upp Upp Zhi Pro Slots Evolved 12 | . . . . . 4 2 . . . . 2 . 2 . . . . 2 . . . . Power 1 | . . . . . 1 . . . . . . . . . . . . . . . . . Propulsion 2 | . . . . . 1 . . . . . . . 1 . . . . . . . . . Utility 8 | . . . . . 2 2 . . . . 2 . 1 . . . . 1 . . . . Weapon 1 | . . . . . . . . . . . . . . . . . . 1 . . . . Parts Attached 263 | . 4 . . 2 18 22 6 3 . 17 22 54 21 5 9 18 7 18 9 1 7 20 Power 37 | . . . . 1 5 4 . 1 . 2 1 8 3 1 1 4 . 3 1 . 1 1 Engine 20 | . . . . . 4 4 . . . 1 1 7 2 1 . . . . . . . . Core 8 | . . . . 1 1 . . . . . . 1 1 . 1 . . 2 1 . . . Reactor 9 | . . . . . . . . 1 . 1 . . . . . 4 . 1 . . 1 1 Propulsion 52 | . 3 . . 1 2 7 1 . . 1 3 13 5 . 4 2 . 6 1 . 2 1 Treads 14 | . 2 . . 1 2 7 1 . . 1 . . . . . . . . . . . . Leg 35 | . . . . . . . . . . . 3 13 5 . 4 1 . 6 1 . 1 1 Wheel 1 | . 1 . . . . . . . . . . . . . . . . . . . . . Hover 2 | . . . . . . . . . . . . . . . . 1 . . . . 1 . Flight . | . . . . . . . . . . . . . . . . . . . . . . . Utility 76 | . 1 . . . 7 8 3 . . 2 11 12 7 2 2 5 3 3 4 1 2 3 Device 44 | . . . . . 5 3 2 . . 1 6 10 3 2 . 3 2 2 3 . 1 1 Storage 5 | . 1 . . . . . . . . . 2 . 1 . . . . . . . . 1 Processor 8 | . . . . . . . . . . . 2 1 . . . 2 . 1 1 . . 1 Hackware 3 | . . . . . . 1 . . . . . . 2 . . . . . . . . . Protection 16 | . . . . . 2 4 1 . . 1 1 1 1 . 2 . 1 . . 1 1 . Artifact . | . . . . . . . . . . . . . . . . . . . . . . . Weapon 98 | . . . . . 4 3 2 2 . 12 7 21 6 2 2 7 4 6 3 . 2 15 Energy Gun 29 | . . . . . 2 1 . . . . 2 4 2 . . 4 . 3 1 . 1 9 Energy Cannon 21 | . . . . . . . . . . 4 2 8 . . . 1 1 1 . . . 4 Ballistic Gun 10 | . . . . . . 2 1 1 . . . . 2 1 . 2 . . 1 . . . Ballistic Cannon 19 | . . . . . 2 . . . . 3 . 3 1 1 2 . 3 2 . . . 2 Launcher 9 | . . . . . . . 1 . . 5 . 2 1 . . . . . . . . . Special Weapon 2 | . . . . . . . . . . . . 1 . . . . . . . . 1 . Impact Weapon 4 | . . . . . . . . 1 . . 3 . . . . . . . . . . . Slashing Weapon 4 | . . . . . . . . . . . . 3 . . . . . . 1 . . . Piercing Weapon . | . . . . . . . . . . . . . . . . . . . . . . . Special Melee Weapon . | . . . . . . . . . . . . . . . . . . . . . . . Unidentified Prototypes 21 | . . . . . . 1 1 . . 2 . . 3 . . 8 . 1 1 . 4 . Corrupted Parts 3 | . . . . . . . 1 . . . . 1 . . . 1 . . . . . . System Corruption 15 | . . . . . . . 3 . . . . 2 . . . 10 . . . . . . Parts Lost 89 | . . . . . 2 1 . . . 9 6 16 5 4 6 1 . 17 . . . 22 Power 17 | . . . . . . . . . . 2 1 4 1 2 . 1 . 4 . . . 2 Propulsion 18 | . . . . . . . . . . 3 1 2 . 1 2 . . 4 . . . 5 Utility 27 | . . . . . 1 . . . . 3 2 6 2 1 3 . . 5 . . . 4 Weapon 27 | . . . . . 1 1 . . . 1 2 4 2 . 1 . . 4 . . . 11 Highest Loss Streak 8 | . . . . . 2 1 . . . 6 6 4 3 4 4 1 . 5 . . . 8 To Critical Strikes 3 | . . . . . . . . . . . . . . . . . . 2 . . . 1 Average Slot Usage (%) 86 | . 85 85 85 85 99 98 99 100 84 85 66 90 96 82 68 86 90 76 79 89 88 65 Engine 6 | . 14 14 14 10 13 15 15 9 7 2 2 9 8 3 . . . . . . . . Core 1 | . . . . 3 4 . . . . . . . 2 3 2 1 . 1 6 10 7 1 Reactor 2 | . . . . . . . . 4 7 11 . . . . . 4 11 4 . . 2 7 Treads 9 | . 25 28 28 28 27 22 23 23 23 16 1 . . . . . . . . . . . Leg 10 | . 2 . . . . . . . . . 10 19 22 21 22 22 17 12 21 21 21 10 Device 15 | . . . . . 18 22 15 15 15 13 18 24 25 16 6 17 16 13 15 18 12 6 Storage 6 | . 14 14 14 14 9 7 7 7 7 7 6 6 5 5 5 5 5 5 5 5 5 5 Processor 6 | . . . . . . . . . . . 8 10 5 5 2 8 11 13 14 15 15 19 Hackware 3 | . . . . . . 5 7 7 7 7 1 . 6 11 11 11 11 7 . . . . Protection 5 | . . . . . 8 8 14 15 15 11 4 5 4 . 3 . 2 3 . 2 7 3 Energy Gun 5 | . 14 14 14 14 . . 7 7 . . 4 4 4 . . 9 . 2 9 10 9 5 Ballistic Gun 3 | . 14 14 14 14 4 3 6 5 . . . . 2 4 5 . . . 2 5 5 . Ballistic Cannon 4 | . . . . . 13 10 . . . 7 1 2 2 4 4 . 10 7 2 . . . Naked Turns . | . . . . . . . . . . . . . . . . . . . . . . . Heaviest Build 131 | 12 47 47 47 50 81 88 95 97 89 109 70 96 98 90 92 110 101 113 95 109 114 131 Greatest Support 95 | 20 40 40 40 48 68 76 84 84 84 84 45 75 80 80 80 80 60 90 95 95 95 95 Greatest Overweight (x) 30 | . 1 1 1 1 1 1 1 1 1 19 15 2 1 1 1 1 1 4 1 1 2 30 Average Overweight (x) 1 | . . 1 1 . . . . 1 1 1 1 1 . . . . 1 1 . . 1 3 Largest Inventory Capacity 20 | 8 20 20 20 20 20 20 20 20 20 20 20 20 20 20 20 20 20 20 20 20 20 20 Average Capacity 19 | 8 16 20 20 20 20 20 20 20 20 20 20 20 20 20 20 20 20 20 20 20 20 20 Most Carried 20 | 6 6 6 8 16 20 20 20 20 20 20 20 20 20 19 19 20 20 20 20 20 20 20 Average Carried 17 | 6 3 5 6 11 18 19 19 20 20 19 18 19 19 17 17 19 19 18 19 20 19 16 Final Capacity 20 | 8 20 20 20 20 20 20 20 20 20 20 20 20 20 20 20 20 20 20 20 20 20 20 Final Carried 20 | 6 5 6 8 16 20 20 20 20 20 19 20 20 20 19 17 19 20 19 20 20 20 10 Class Distribution -------------------- 42% | Hacker-Mutant 26% | Mutant 14% | Scavenger-Mutant 5% | Scavenger-Gunner 4% | Derelict-Gunner 3% | Commander-Mutant Dominant Class ---------------- Mutant | -10/Materials Mutant | -10/Mines Mutant | -10/Exiles Mutant | -9/Mines Mutant | -8/Materials Hacker-Mutant | -7/Factory Hacker-Mutant | -7/Lower Caves Hacker-Mutant | -7/Lower Caves Hacker-Mutant | -7/Data Miner Hacker-Mutant | -6/Proximity Caves Scavenger-Mutant | -6/Factory Scavenger-Mutant | -6/Extension Hacker-Mutant | -5/Factory Hacker-Mutant | -5/Upper Caves Hacker-Mutant | -5/Upper Caves Hacker-Mutant | -5/Warlord Hacker-Mutant | -4/Proximity Caves Hacker-Tank | -4/Factory Scavenger-Gunner | -4/Upper Caves Scavenger-Gunner | -4/Upper Caves Derelict-Gunner | -4/Zhirov Mutant | -3/Proximity Caves Resources | -11 -10 -10 -10 -9 -8 -7 -7 -7 -7 -6 -6 -6 -5 -5 -5 -5 -4 -4 -4 -4 -4 -3 ----------- Run | Scr Mat Min Exi Min Mat Fac Low Low Dat Pro Fac Ext Fac Upp Upp War Pro Fac Upp Upp Zhi Pro Matter Collected 6974 | 200 79 27 . 38 469 816 278 192 . 534 202 944 200 404 522 105 306 783 244 85 230 316 Remotely . | . . . . . . . . . . . . . . . . . . . . . . . Salvage Created 8238 | . 163 133 . 56 593 301 452 82 . 756 192 1385 259 520 683 158 40 1111 129 . 230 995 Parts 342 | . 14 8 . 5 28 13 15 3 . 28 10 55 14 18 37 10 . 47 5 . 2 30 Haulers Intercepted 2 | . . . . . 1 . 1 . . . . . . . . . . . . . . . Recyclers Shooed 4 | . . . . . 1 . . . . . . 1 . . . . . 2 . . . . Parts Field Recycled . | . . . . . . . . . . . . . . . . . . . . . . . Retrieved Matter . | . . . . . . . . . . . . . . . . . . . . . . . Parts Self-Destructed 121 | . . . . . . . 9 3 . 29 . . . 17 36 . . . 5 . . 22 Prevented 4 | . . . . . . . 4 . . . . . . . . . . . . . . . Kills | -11 -10 -10 -10 -9 -8 -7 -7 -7 -7 -6 -6 -6 -5 -5 -5 -5 -4 -4 -4 -4 -4 -3 ------- Run | Scr Mat Min Exi Min Mat Fac Low Low Dat Pro Fac Ext Fac Upp Upp War Pro Fac Upp Upp Zhi Pro Combat Hostiles Destroyed 165 | . 5 3 . 3 15 9 6 4 . 21 4 20 4 7 17 4 1 15 3 . . 24 Melee 3 | . . . . . . . . . . . . 3 . . . . . . . . . . Guns 56 | . 3 3 . 2 1 3 2 4 . . 1 3 2 2 11 . . 6 3 . . 10 Cannons 72 | . . . . . 14 6 . . . 11 2 11 . 5 6 2 1 9 . . . 5 AOE 29 | . 2 . . 1 . . 4 . . 10 . 1 2 . . 2 . . . . . 7 Classes Destroyed 20 | . 3 . . . 7 2 1 . . . 1 1 . . 1 1 . . . . . 3 Worker 4 | . . . . . 1 1 . . . . . 1 1 . . . . . . . . . Builder 8 | . . . . . 1 1 . . . . . 3 1 . . . . 2 . . . . Tunneler 1 | . 1 . . . . . . . . . . . . . . . . . . . . . Hauler 2 | . . . . . 1 . 1 . . . . . . . . . . . . . . . Recycler 7 | . . . . . 2 1 . . . . . 1 . . . . . 3 . . . . Minesweeper 1 | . . . . . . . . . . . . . . . 1 . . . . . . . Operator 2 | . . . . . . . . . . . . 1 . . . . . 1 . . . . Watcher 2 | . . . . . 1 . . . . . . 1 . . . . . . . . . . Swarmer 30 | . 3 . . 3 4 . . 4 . 1 . . . . 8 . . 2 2 . . 3 Saboteur 3 | . . . . . . . . . . . . . . . . . . . . . . 3 Grunt 74 | . 2 3 . . 9 . 5 . . 16 2 15 2 4 7 . . 4 . . . 5 Brawler 6 | . . . . . . . . . . . 1 1 . . . 1 . . . . . 3 Duelist 6 | . . . . . 1 . . . . . . 1 1 2 . 1 . . . . . . Protector 1 | . . . . . . . . . . . . . . . . . . . . . . 1 Sentry 19 | . . . . . 1 2 1 . . 2 . 3 . 1 . . 1 1 1 . . 6 Hunter 13 | . . . . . . 1 . . . 2 . . 1 . . 1 . 6 . . . 2 Programmer 11 | . . . . . . 6 . . . . 1 . . . 2 . . 2 . . . . Behemoth 1 | . . . . . . . . . . . . . . . . . . . . . . 1 Striker 1 | . . . . . . . . . . . . . . . . 1 . . . . . . Samaritan 2 | . . . . . . . 1 . . . . . . 1 . . . . . . . . Best Kill Streak 10 | . 3 2 . 3 7 3 6 4 . 4 3 5 5 7 10 4 1 6 3 . . 6 Combat Bots Only 10 | . 2 2 . 3 4 2 5 4 . 4 3 4 2 7 10 4 1 5 3 . . 6 Max Kills in Single Turn 4 | . 3 1 . 1 2 2 3 1 . 2 1 4 1 1 2 2 1 1 1 . . 3 Gunslinging . | . . . . . . . . . . . . . . . . . . . . . . . Exploded 3 | . 2 . . 1 . . 2 . . 2 . 1 1 . . 1 . . . . . 3 Melee 1 | . . . . . . . . . . . . 1 . . . . . . . . . . Uniques/NPCs Destroyed . | . . . . . . . . . . . . . . . . . . . . . . . Combat | -11 -10 -10 -10 -9 -8 -7 -7 -7 -7 -6 -6 -6 -5 -5 -5 -5 -4 -4 -4 -4 -4 -3 -------- Run | Scr Mat Min Exi Min Mat Fac Low Low Dat Pro Fac Ext Fac Upp Upp War Pro Fac Upp Upp Zhi Pro Damage Taken 15445 | . 129 84 . 149 589 931 225 291 . 1855 707 1995 880 410 1299 292 72 2436 102 . . 2999 Core 2525 | . 13 21 . 12 95 71 8 26 . 220 327 311 96 30 74 44 21 512 . . . 644 Absorbed by Shields 552 | . . . . . . . . . . . . 141 161 87 53 110 . . . . . . Redirected to Shielding 168 | . . . . . . . . . . . . . . . . . . . . . . 168 Regen/Repaired (Parts) 688 | . . . . . . 398 . . . . . . 290 . . . . . . . . . Core Remaining (%) 68 | 100 . . . 81 82 . . . . 53 . 24 . . . . 73 . . . . . Volleys Fired 594 | . 13 9 . 6 47 40 17 13 . 58 9 102 18 23 40 12 3 72 8 . 17 87 Largest 3 | . 2 2 . 2 2 2 2 1 . 2 1 2 2 2 2 2 2 3 3 . 1 3 Hottest 225 | . 60 60 . 60 113 92 83 55 . 134 90 150 132 94 94 146 110 217 189 . 33 225 Shots Fired 953 | . 26 18 . 12 93 80 25 14 . 79 9 121 33 39 74 16 7 137 20 . 17 133 Gun 430 | . 26 18 . 12 20 18 22 14 . . 2 19 28 16 40 10 . 54 20 . 12 99 Cannon 471 | . . . . . 73 62 . . . 61 7 79 2 23 34 6 7 83 . . . 34 Launcher 29 | . . . . . . . 3 . . 18 . 5 3 . . . . . . . . . Special 23 | . . . . . . . . . . . . 18 . . . . . . . . 5 . Kinetic 531 | . 13 9 . 6 90 80 8 12 . 39 4 18 15 39 74 . 7 76 8 . 12 21 Thermal 207 | . . . . . 3 . . . . 22 3 55 2 . . 5 . 61 12 . . 44 Explosive 17 | . . . . . . . 3 . . 14 . . . . . . . . . . . . Electromagnetic 100 | . 13 9 . 6 . . 14 2 . 4 2 30 16 . . 2 . . . . . 2 Entropic 75 | . . . . . . . . . . . . . . . . 9 . . . . . 66 Robot Hit Streak 27 | . 6 11 . 7 20 17 14 9 . 27 8 19 8 6 15 13 6 20 4 . 21 24 Robot Miss Streak 8 | . 1 1 . 2 3 4 2 5 . 1 1 2 3 1 2 1 4 8 1 . . 2 Penetration Max 1 | . . . . . . 1 . . . . . . 1 1 1 1 . 1 . . . . Secondary Targets 5 | . 1 . . . . . . . . . . . 1 . . . . . 2 . . 1 Max Gunslinging Chain 1 | . 1 . . . . . . . . . . . 1 . . . . . 1 . . 1 Shots Hit Robots 747 | . 19 13 . 8 70 68 21 12 . 62 15 118 22 29 48 14 5 95 12 . 17 99 Core Hits 425 | . 9 7 . 3 29 25 23 14 . 45 5 65 17 19 26 8 6 60 6 . 8 50 Critical Kills 20 | . . . . . . . . . . . . . . 5 7 . 1 7 . . . . Critical Parts Destroyed 30 | . . . . . . . . . . . 1 . 1 5 5 1 1 9 . . 1 6 Critical Strikes 87 | . . 1 . . 3 6 1 . . . 2 2 2 10 12 3 2 29 1 . 1 12 Burn 13 | . . . . . . . . . . . 1 1 . . . . . 7 1 . . 3 Destroy 42 | . . . . . . . . . . . . . 1 10 12 . 2 16 . . 1 . Blast 16 | . . . . . 3 6 . . . . . . . . . . . 6 . . . 1 Corrupt 3 | . . 1 . . . . 1 . . . . . 1 . . . . . . . . . Smash 1 | . . . . . . . . . . . 1 . . . . . . . . . . . Sever 1 | . . . . . . . . . . . . 1 . . . . . . . . . . Detonate 7 | . . . . . . . . . . . . . . . . 1 . . . . . 6 Sunder 4 | . . . . . . . . . . . . . . . . 2 . . . . . 2 Melee Attacks 32 | . . . . . . . . 3 . . 10 18 . . . . . . 1 . . . Impact 13 | . . . . . . . . 3 . . 10 . . . . . . . . . . . Slashing 19 | . . . . . . . . . . . . 18 . . . . . . 1 . . . Piercing . | . . . . . . . . . . . . . . . . . . . . . . . Sneak Attacks . | . . . . . . . . . . . . . . . . . . . . . . . Combat Hostiles . | . . . . . . . . . . . . . . . . . . . . . . . Follow-up Attacks 2 | . . . . . . . . . . . . 2 . . . . . . . . . . Damage Inflicted 24166 | . 338 166 . 133 1777 1848 876 172 . 2863 471 3447 971 635 1199 1057 133 2687 269 . 300 4824 Guns 7860 | . 228 166 . 100 229 400 382 172 . . 44 418 565 310 716 295 . 905 269 . 300 2361 Cannons 10880 | . . . . . 1533 1362 . . . 1576 195 2039 . 325 483 402 133 1532 . . . 1300 Explosions 4499 | . 110 . . 33 . 86 494 . . 1287 . 352 364 . . 360 . 250 . . . 1163 Melee 866 | . . . . . . . . . . . 232 634 . . . . . . . . . . Ramming 61 | . . . . . 15 . . . . . . 4 42 . . . . . . . . . Kinetic 9912 | . 77 73 . 42 1714 1762 131 172 . 876 95 372 286 635 1199 . 133 1447 97 . 300 501 Thermal 6555 | . 110 . . 33 48 86 . . . 700 90 1572 191 . . 472 . 1240 172 . . 1841 Explosive 1769 | . . . . . . . 494 . . 1275 . . . . . . . . . . . . Electromagnetic 1981 | . 151 93 . 58 . . 251 . . 12 54 865 452 . . 24 . . . . . 21 Impact 232 | . . . . . . . . . . . 232 . . . . . . . . . . . Slashing 634 | . . . . . . . . . . . . 634 . . . . . . . . . . Piercing . | . . . . . . . . . . . . . . . . . . . . . . . Entropic 3022 | . . . . . . . . . . . . . . . . 561 . . . . . 2461 Highest Corruption 11 | . . . . . . 4 7 7 7 7 2 4 1 1 1 11 11 . . . . 2 Average Corruption 4 | . . . . . . 3 5 7 7 7 2 2 1 1 1 5 9 . . . . 2 Corruption Purged 7 | . . . . . . . . . . . . . . . . . 7 . . . . . Corruption Blocked 8 | . . . . . . . . . . . . . . . . 8 . . . . . . Effects 226 | . . . . . . 17 22 19 6 42 11 51 . 9 6 2 30 . . . . 11 Message Errors 55 | . . . . . . 3 5 3 3 8 2 10 . 4 2 . 7 . . . . 8 Matter Fused 61 | . . . . . . 5 4 8 1 14 4 12 . 1 2 . 8 . . . . 2 Heat Flow Errors 33 | . . . . . . 3 5 4 1 1 1 8 . 1 . 2 7 . . . . . Energy Discharges 20 | . . . . . . 3 1 . 1 3 1 6 . 2 1 . 2 . . . . . Parts Rejected 1 | . . . . . . . . . . . . . . . 1 . . . . . . . Data Loss (minor) 27 | . . . . . . 2 2 2 . 7 2 7 . . . . 4 . . . . 1 Data Loss (major) 15 | . . . . . . 1 2 1 . 6 1 3 . . . . 1 . . . . . Misfires 7 | . . . . . . . 3 1 . . . 1 . 1 . . 1 . . . . . Alerts 4 | . . . . . . . . . . 1 . 3 . . . . . . . . . . Weapon Failures 3 | . . . . . . . . . . 2 . 1 . . . . . . . . . . Overload Shots 1 | . . . . . . . . . . . . . . . . . . . . . . 1 Overflow Damage 484 | . . . . . 33 65 . . . 43 33 88 33 23 2 37 . 32 . . . 95 Projectiles 291 | . . . . . 33 23 . . . 27 . 25 . 23 2 37 . 32 . . . 89 Explosions 109 | . . . . . . 42 . . . 16 . 12 33 . . . . . . . . 6 Melee 84 | . . . . . . . . . . . 33 51 . . . . . . . . . . Knockbacks 61 | . . . . . 14 7 . . . 13 2 8 . 4 5 . . 8 . . . . Impact 1 | . . . . . . . . . . . 1 . . . . . . . . . . . Kinetic 54 | . . . . . 10 7 . . . 12 1 8 . 4 5 . . 7 . . . . Secondary 6 | . . . . . 4 . . . . 1 . . . . . . . 1 . . . . Self-Inflicted Damage 270 | . . . . 28 . 60 . . . 44 . . 105 . . . . . . . . 33 Shots 10 | . . . . 1 . 1 . . . 2 . . 5 . . . . . . . . 1 Rammed 3 | . . . . . 3 . . . . . . . . . . . . . . . . . Targets Rammed 5 | . . . . . 3 . . . . . . 1 1 . . . . . . . . . Kicked 2 | . . . . . . . . . . . . 1 1 . . . . . . . . . Crushed . | . . . . . . . . . . . . . . . . . . . . . . . Highest Temperature 746 | . 51 48 . 12 397 260 254 262 237 261 237 646 230 370 228 244 282 746 . . . 98 Average Temperature 124 | . 33 26 . 12 100 61 104 118 118 110 45 162 97 160 64 67 103 228 . . . 27 Received Heat Transfer 4320 | . 66 66 . . 252 132 117 . . 711 360 1120 347 277 379 . 36 220 18 . . 219 Effects 62 | . . . . . 6 . . 1 . . . 33 . 2 2 1 3 14 . . . . Shutdowns 13 | . . . . . 2 . . . . . . 8 . . . . . 3 . . . . Energy Bleed 8 | . . . . . 1 . . 1 . . . 3 . 1 . 1 . 1 . . . . Interference 12 | . . . . . 2 . . . . . . 3 . . 2 . 3 2 . . . . Matter Decay 6 | . . . . . . . . . . . . 2 . 1 . . . 3 . . . . Damage (minor) 4 | . . . . . 1 . . . . . . 1 . . . . . 2 . . . . Damage (major) 18 | . . . . . . . . . . . . 16 . . . . . 2 . . . . Damage (core) 1 | . . . . . . . . . . . . . . . . . . 1 . . . . Siege Activations . | . . . . . . . . . . . . . . . . . . . . . . . Robots Corrupted 4 | . . . . . . . 1 . . . . 3 . . . . . . . . . . Combat Hostiles 2 | . . . . . . . . . . . . 2 . . . . . . . . . . Parts Fried 8 | . 1 . . . . . 2 . . . . 5 . . . . . . . . . . Impact Corruptions 1 | . . . . . . . . . . . 1 . . . . . . . . . . . Robots Melted 2 | . . . . . . . . . . . . . . . . . . . . . . 2 Combat Hostiles 2 | . . . . . . . . . . . . . . . . . . . . . . 2 Parts Melted 17 | . . . . . . . . . . . 1 2 3 . . . . 3 . . . 8 Heat Transferred 7124 | . 150 . . 50 111 50 . . . . 148 1173 237 . . 476 . 2272 370 . . 2087 Parts Sabotaged . | . . . . . . . . . . . . . . . . . . . . . . . Parts Stolen . | . . . . . . . . . . . . . . . . . . . . . . . Parts Stripped . | . . . . . . . . . . . . . . . . . . . . . . . Power Chain Reactions 5 | . 1 . . 1 . . . . . . . 1 2 . . . . . . . . . Missiles Intercepted . | . . . . . . . . . . . . . . . . . . . . . . . Alert | -11 -10 -10 -10 -9 -8 -7 -7 -7 -7 -6 -6 -6 -5 -5 -5 -5 -4 -4 -4 -4 -4 -3 ------- Run | Scr Mat Min Exi Min Mat Fac Low Low Dat Pro Fac Ext Fac Upp Upp War Pro Fac Upp Upp Zhi Pro Peak Influence 407 | . 162 93 . 75 193 166 . . . . 80 270 407 . . . . 402 . . . . Initial 113 | . . 3 . . 24 74 . . . . . . 113 . . . . . . . . . Average 79 | . 49 78 . 37 69 51 . . . . 20 59 284 . . . . 132 . . . . Maximum Alert Level 2 | . . . . . . . . . . . . 1 2 . . . . 2 . . . . Low Security (%) 88 | 100 100 100 . 100 100 100 . . . . 100 92 18 . . . . 70 . . . . Level 1 10 | . . . . . . . . . . . . 7 74 . . . . 28 . . . . Level 2 . | . . . . . . . . . . . . . 7 . . . . . . . . . Level 3 . | . . . . . . . . . . . . . . . . . . . . . . . Level 4 . | . . . . . . . . . . . . . . . . . . . . . . . Level 5 . | . . . . . . . . . . . . . . . . . . . . . . . High Security . | . . . . . . . . . . . . . . . . . . . . . . . Max Security . | . . . . . . . . . . . . . . . . . . . . . . . Squads Dispatched 23 | . . 1 . . 3 8 . . . 1 2 3 3 . . . . 2 . . . . Investigation 10 | . . 1 . . 2 3 . . . 1 1 1 1 . . . . . . . . . Extermination 8 | . . . . . . 5 . . . . 1 . 1 . . . . 1 . . . . Reinforcement 5 | . . . . . 1 . . . . . . 2 1 . . . . 1 . . . . Assault . | . . . . . . . . . . . . . . . . . . . . . . . Garrison . | . . . . . . . . . . . . . . . . . . . . . . . Intercept . | . . . . . . . . . . . . . . . . . . . . . . . Searches Triggered . | . . . . . . . . . . . . . . . . . . . . . . . Data Miner Redirects 3 | . . . . . . . . . . . 1 1 1 . . . . . . . . . Construction Impeded 3 | . . . . . . . . . . . . 1 1 . . . . 1 . . . . Haulers Reinforced . | . . . . . . . . . . . . . . . . . . . . . . . Active Scanning Responses . | . . . . . . . . . . . . . . . . . . . . . . . Cargo Convoy Interrupts . | . . . . . . . . . . . . . . . . . . . . . . . Stealth | -11 -10 -10 -10 -9 -8 -7 -7 -7 -7 -6 -6 -6 -5 -5 -5 -5 -4 -4 -4 -4 -4 -3 --------- Run | Scr Mat Min Exi Min Mat Fac Low Low Dat Pro Fac Ext Fac Upp Upp War Pro Fac Upp Upp Zhi Pro Distress Signals 10 | . 1 . . . 3 . . . . . . 3 1 . . . . 1 . . . 1 Communications Jammed 5 | . . . . . . 5 . . . . . . . . . . . . . . . . Distress Signals 3 | . . . . . . 3 . . . . . . . . . . . . . . . . Times Spotted 262 | . 12 3 . 4 27 15 6 4 . 23 5 47 23 7 22 14 1 24 3 1 . 21 Peak Tracking Total 11 | . 4 2 . 4 5 3 5 4 . 7 3 5 7 7 10 11 1 6 3 1 . 5 Tactical Retreats 15 | . . . . . 1 . . . . . . 2 2 . 5 . . 4 . . . 1 Traps | -11 -10 -10 -10 -9 -8 -7 -7 -7 -7 -6 -6 -6 -5 -5 -5 -5 -4 -4 -4 -4 -4 -3 ------- Run | Scr Mat Min Exi Min Mat Fac Low Low Dat Pro Fac Ext Fac Upp Upp War Pro Fac Upp Upp Zhi Pro Traps Triggered 8 | . . . . . 1 2 . . . . 1 3 . . . . . 1 . . . . Indirectly . | . . . . . . . . . . . . . . . . . . . . . . . Trap Hack Attempts . | . . . . . . . . . . . . . . . . . . . . . . . Triggered . | . . . . . . . . . . . . . . . . . . . . . . . Disarmed . | . . . . . . . . . . . . . . . . . . . . . . . Reprogrammed . | . . . . . . . . . . . . . . . . . . . . . . . Reused . | . . . . . . . . . . . . . . . . . . . . . . . Traps Extracted . | . . . . . . . . . . . . . . . . . . . . . . . Installed 1 | . . . . . . . . . . . . . . . 1 . . . . . . . Triggered 23 | . . . . . . . . . . 1 . . . . 1 20 . . 1 . . . Machines | -11 -10 -10 -10 -9 -8 -7 -7 -7 -7 -6 -6 -6 -5 -5 -5 -5 -4 -4 -4 -4 -4 -3 ---------- Run | Scr Mat Min Exi Min Mat Fac Low Low Dat Pro Fac Ext Fac Upp Upp War Pro Fac Upp Upp Zhi Pro Machines Disabled 32 | . . . . . 2 4 . 1 . . . 3 9 . 1 . . 9 1 . . 2 Max in Single Turn 4 | . . . . . 1 4 . 1 . . . 1 1 . 1 . . 4 1 . . 1 Garrison Access 1 | . . . . . 1 . . . . . . . . . . . . . . . . . Machines Sabotaged . | . . . . . . . . . . . . . . . . . . . . . . . Garrisons Compromised . | . . . . . . . . . . . . . . . . . . . . . . . Overloaded Fab Kills . | . . . . . . . . . . . . . . . . . . . . . . . Hacking | -11 -10 -10 -10 -9 -8 -7 -7 -7 -7 -6 -6 -6 -5 -5 -5 -5 -4 -4 -4 -4 -4 -3 --------- Run | Scr Mat Min Exi Min Mat Fac Low Low Dat Pro Fac Ext Fac Upp Upp War Pro Fac Upp Upp Zhi Pro Machines Accessed 52 | . 3 1 1 1 5 7 . 1 4 1 2 5 5 . 1 5 . . 2 1 6 1 Terminals 23 | . 3 1 . . 2 3 . . . 1 2 5 2 . 1 . . . 1 1 . 1 Fabricators . | . . . . . . . . . . . . . . . . . . . . . . . Repair Stations 6 | . . . . . 1 2 . . . . . . 3 . . . . . . . . . Recycling Units . | . . . . . . . . . . . . . . . . . . . . . . . Scanalyzers 3 | . . . . . 1 2 . . . . . . . . . . . . . . . . Garrison Access 1 | . . . . . 1 . . . . . . . . . . . . . . . . . Total Hacks 159 | . 7 12 1 1 13 23 . 1 26 4 5 10 13 . 5 11 . . 2 2 22 1 Successful 130 | . 7 6 1 1 6 17 . 1 26 4 1 6 11 . 5 11 . . 2 2 22 1 Failed 28 | . . 6 . . 7 5 . . . . 4 4 2 . . . . . . . . . Catastrophic 2 | . . . . . 1 1 . . . . . . . . . . . . . . . . Database Lockouts 1 | . . . . . . 1 . . . . . . . . . . . . . . . . Manual 28 | . 1 12 . . 1 10 . . . . . 1 2 . . 1 . . . . . . Terminals 65 | . 7 12 . . 3 11 . . . 4 5 10 4 . 5 . . . 1 2 . 1 Fabricators . | . . . . . . . . . . . . . . . . . . . . . . . Repair Stations 16 | . . . . . 3 4 . . . . . . 9 . . . . . . . . . Recycling Units . | . . . . . . . . . . . . . . . . . . . . . . . Scanalyzers 12 | . . . . . 4 8 . . . . . . . . . . . . . . . . Garrison Access 3 | . . . . . 3 . . . . . . . . . . . . . . . . . Terminal Hacks 104 | . 7 6 1 1 1 4 . 1 26 4 1 6 3 . 5 11 . . 2 2 22 1 Record 49 | . . . 1 . . . . 1 11 4 . 2 2 . 5 9 . . 2 2 10 . Part Schematic 15 | . . . . . . 2 . . 9 . . . . . . . . . . . 4 . Robot Schematic 3 | . . . . . . . . . 3 . . . . . . . . . . . . . Robot Analysis 4 | . . . . . . . . . . . . . . . . . . . . . 4 . Prototype ID Bank 17 | . 2 6 . . . 1 . . 3 . . 1 . . . . . . . . 4 . Open Door 5 | . . . . 1 . . . . . . . 1 . . . 2 . . . . . 1 Level Access Points 1 | . . . . . 1 . . . . . . . . . . . . . . . . . Branch Access Points 4 | . 1 . . . . 1 . . . . . 1 1 . . . . . . . . . Emergency Access Points 1 | . 1 . . . . . . . . . . . . . . . . . . . . . Terminal Index 1 | . . . . . . . . . . . 1 . . . . . . . . . . . Alert Level 2 | . 2 . . . . . . . . . . . . . . . . . . . . . Hauler Manifests 1 | . 1 . . . . . . . . . . . . . . . . . . . . . Zone Layout 1 | . . . . . . . . . . . . 1 . . . . . . . . . . Fabricator Hacks . | . . . . . . . . . . . . . . . . . . . . . . . Repair Station Hacks 12 | . . . . . 1 4 . . . . . . 7 . . . . . . . . . Scan Component 7 | . . . . . 1 2 . . . . . . 4 . . . . . . . . . Repair 5 | . . . . . . 2 . . . . . . 3 . . . . . . . . . Recycling Unit Hacks . | . . . . . . . . . . . . . . . . . . . . . . . Scanalyzer 10 | . . . . . 3 7 . . . . . . . . . . . . . . . . Insert Component 5 | . . . . . 2 3 . . . . . . . . . . . . . . . . Analyze 5 | . . . . . 1 4 . . . . . . . . . . . . . . . . Garrison Access Hacks 1 | . . . . . 1 . . . . . . . . . . . . . . . . . Seal Access 1 | . . . . . 1 . . . . . . . . . . . . . . . . . Unauthorized Hacks 3 | . . . . . . 2 . . . . . . 1 . . . . . . . . . Terminals 3 | . . . . . . 2 . . . . . . 1 . . . . . . . . . Botnet 3 | . . . . . . 2 . . . . . . 1 . . . . . . . . . Fabricators . | . . . . . . . . . . . . . . . . . . . . . . . Repair Stations . | . . . . . . . . . . . . . . . . . . . . . . . Recycling Units . | . . . . . . . . . . . . . . . . . . . . . . . Scanalyzers . | . . . . . . . . . . . . . . . . . . . . . . . Garrison Access . | . . . . . . . . . . . . . . . . . . . . . . . Data Cores Recovered . | . . . . . . . . . . . . . . . . . . . . . . . Used . | . . . . . . . . . . . . . . . . . . . . . . . Hacking Detections 29 | . 3 1 . . 5 7 . . . 1 2 3 5 . 1 . . . . 1 . . Full Trace Events 9 | . . 1 . . 2 3 . . . 1 1 1 . . . . . . . . . . Feedback Events . | . . . . . . . . . . . . . . . . . . . . . . . Feedback Blocked . | . . . . . . . . . . . . . . . . . . . . . . . Robot Schematics Acquired 3 | . . . . . . . . . 3 . . . . . . . . . . . . . Robots Built . | . . . . . . . . . . . . . . . . . . . . . . . Authchips . | . . . . . . . . . . . . . . . . . . . . . . . Time . | . . . . . . . . . . . . . . . . . . . . . . . Total Robot Build Rating . | . . . . . . . . . . . . . . . . . . . . . . . Part Schematics Acquired 18 | . . . . . 1 4 . . 9 . . . . . . . . . . . 4 . Parts Built . | . . . . . . . . . . . . . . . . . . . . . . . Authchips . | . . . . . . . . . . . . . . . . . . . . . . . Time . | . . . . . . . . . . . . . . . . . . . . . . . Total Part Build Rating . | . . . . . . . . . . . . . . . . . . . . . . . Parts Repaired 5 | . . . . . . 2 . . . . . . 3 . . . . . . . . . Time 110 | . . . . . . 63 . . . . . . 47 . . . . . . . . . Parts Recycled . | . . . . . . . . . . . . . . . . . . . . . . . Recycled Matter . | . . . . . . . . . . . . . . . . . . . . . . . Retrieved Matter . | . . . . . . . . . . . . . . . . . . . . . . . Retrieved Components . | . . . . . . . . . . . . . . . . . . . . . . . Parts Scanalyzed 5 | . . . . . 2 3 . . . . . . . . . . . . . . . . Part Schematics Acquired 4 | . . . . . 1 3 . . . . . . . . . . . . . . . . Parts Damaged . | . . . . . . . . . . . . . . . . . . . . . . . Bothacking | -11 -10 -10 -10 -9 -8 -7 -7 -7 -7 -6 -6 -6 -5 -5 -5 -5 -4 -4 -4 -4 -4 -3 ------------ Run | Scr Mat Min Exi Min Mat Fac Low Low Dat Pro Fac Ext Fac Upp Upp War Pro Fac Upp Upp Zhi Pro Used RIF Installer . | . . . . . . . . . . . . . . . . . . . . . . . Robots Hacked 5 | . . . . . . . . . . . . 5 . . . . . . . . . . Non-combat . | . . . . . . . . . . . . . . . . . . . . . . . Combat 5 | . . . . . . . . . . . . 5 . . . . . . . . . . Robot Hacks Applied 5 | . . . . . . . . . . . . 5 . . . . . . . . . . parse_system 5 | . . . . . . . . . . . . 5 . . . . . . . . . . Relay Couplers Released . | . . . . . . . . . . . . . . . . . . . . . . . Fabnet Peak Effective % . | . . . . . . . . . . . . . . . . . . . . . . . Robots Rewired 20 | . . . . . . . . . . . . 20 . . . . . . . . . . Allies Hacked . | . . . . . . . . . . . . . . . . . . . . . . . Hacks Repelled . | . . . . . . . . . . . . . . . . . . . . . . . Allies | -11 -10 -10 -10 -9 -8 -7 -7 -7 -7 -6 -6 -6 -5 -5 -5 -5 -4 -4 -4 -4 -4 -3 -------- Run | Scr Mat Min Exi Min Mat Fac Low Low Dat Pro Fac Ext Fac Upp Upp War Pro Fac Upp Upp Zhi Pro Total Allies 29 | . . . . . . . . . . 1 . 28 . . . . . . . . . . Largest Group 14 | . . . . . . . . . . 1 . 14 12 . . . . . . . . . Highest-Rated Group 520 | . . . . . . . . . . 96 . 520 520 . . . . . . . . . Highest-Rated Ally 159 | . . . . . . . . . . 96 . 159 159 . . . . . . . . . Total Orders 9 | . . . . . . . . . . . . . . . . . . . 2 3 2 2 EXPLORE 7 | . . . . . . . . . . . . . . . . . . . 2 2 1 2 RETURN 2 | . . . . . . . . . . . . . . . . . . . . 1 1 . Ally Attacks 286 | . . . . . . . . . . 9 . 220 57 . . . . . . . . . Total Damage 5985 | . . . . . . . . . . 329 . 4142 1514 . . . . . . . . . Kills 43 | . . . . . . . . . . 2 . 30 11 . . . . . . . . . Allies Corrupted . | . . . . . . . . . . . . . . . . . . . . . . . Allies Melted 3 | . . . . . . . . . . . . 1 . . . 2 . . . . . . Intel | -11 -10 -10 -10 -9 -8 -7 -7 -7 -7 -6 -6 -6 -5 -5 -5 -5 -4 -4 -4 -4 -4 -3 ------- Run | Scr Mat Min Exi Min Mat Fac Low Low Dat Pro Fac Ext Fac Upp Upp War Pro Fac Upp Upp Zhi Pro Robot Analysis Total 4 | . . . . . . . . . . . . . . . . . . . . . 4 . Derelict Logs Recovered 7 | . . . . . . . 1 1 . . . . . . 1 . 2 . 2 . . . Drone Launches 14 | . . . . . . . . . . . . . . . . . . . 4 4 2 4 Drone Recoveries 14 | . . . . . . . . . . . . . . . . . . . 4 4 2 4 Exploration | -11 -10 -10 -10 -9 -8 -7 -7 -7 -7 -6 -6 -6 -5 -5 -5 -5 -4 -4 -4 -4 -4 -3 ------------- Run | Scr Mat Min Exi Min Mat Fac Low Low Dat Pro Fac Ext Fac Upp Upp War Pro Fac Upp Upp Zhi Pro Turns Passed 20889 | 62 795 440 875 396 1190 1977 725 689 225 1248 878 3102 876 662 792 1289 887 790 767 510 476 1238 Spaces Moved 8010 | 35 360 172 364 145 392 711 283 269 94 384 315 1159 321 310 357 676 339 274 382 190 184 294 Core 34 | . . . . . . . . . . 4 1 . . . . . . . . . . 29 Treads 3178 | . 322 172 364 145 392 711 283 269 94 380 46 . . . . . . . . . . . Legs 4798 | 35 38 . . . . . . . . . 268 1159 321 310 357 676 339 274 382 190 184 265 Wheels . | . . . . . . . . . . . . . . . . . . . . . . . Hover . | . . . . . . . . . . . . . . . . . . . . . . . Flight . | . . . . . . . . . . . . . . . . . . . . . . . Fastest Speed 120 | 120 120 240 240 160 160 160 160 240 240 240 186 120 120 120 120 120 190 120 120 120 190 190 Average Speed 211 | 120 204 240 240 233 232 236 238 240 240 278 233 205 189 189 172 178 190 195 132 146 190 310 Slowest Speed 1550 | 120 240 240 240 240 240 240 240 240 240 1000 800 260 190 190 190 190 190 400 190 190 260 1550 Overloaded Moves . | . . . . . . . . . . . . . . . . . . . . . . . Propulsion Burnouts . | . . . . . . . . . . . . . . . . . . . . . . . Robots Hopped . | . . . . . . . . . . . . . . . . . . . . . . . Cave-ins Triggered . | . . . . . . . . . . . . . . . . . . . . . . . Exploration Rate (%) 50 | 4 53 42 79 43 38 18 46 40 70 68 8 88 12 50 58 81 78 12 78 55 63 74 Regions Visited 22 Branch Regions 16 Pre-discovered Areas 9 | . . . 1 . . . . 1 1 . . . . . . 1 1 . 1 . 3 . Known Exits Taken 8 | . 1 . . . 1 1 . . . . . 1 1 1 1 . 1 . . . . . Unknown Exits Taken 14 | 1 . 1 1 1 . . 1 1 1 1 1 . . . . 1 . 1 1 1 1 . Scrap Searched 20 | . . . . . . . . 4 . 1 . . . 1 2 . 5 . 3 3 . 1 Spaces Dug 5 | . . . . . . . . . . . 1 . . . . . . 2 . . . 2 Terrain Destroyed 405 | . 5 . . 5 8 51 33 . . 143 1 3 9 4 6 6 . 75 . . . 56 Melee 1 | . . . . . . . . . . . 1 . . . . . . . . . . . Projectile 79 | . . . . . 8 4 . . . 3 . 2 4 4 6 . . 19 . . . 29 AOE 325 | . 5 . . 5 . 47 33 . . 140 . 1 5 . . 6 . 56 . . . 27 Terrain Rammed . | . . . . . . . . . . . . . . . . . . . . . . . Walls Destroyed . | . . . . . . . . . . . . . . . . . . . . . . . Machines Disabled . | . . . . . . . . . . . . . . . . . . . . . . . Actions | -11 -10 -10 -10 -9 -8 -7 -7 -7 -7 -6 -6 -6 -5 -5 -5 -5 -4 -4 -4 -4 -4 -3 --------- Run | Scr Mat Min Exi Min Mat Fac Low Low Dat Pro Fac Ext Fac Upp Upp War Pro Fac Upp Upp Zhi Pro Total 10982 | 55 396 182 367 190 581 931 313 297 95 469 427 1748 559 345 457 743 575 411 624 423 296 498 Wait 1714 | 21 11 1 . 30 87 132 . . . 6 62 241 175 6 48 15 220 38 217 232 77 95 Move 7988 | 34 359 171 363 144 391 710 282 268 93 383 314 1158 320 309 356 675 338 273 381 189 183 294 Hop . | . . . . . . . . . . . . . . . . . . . . . . . Pick Up 101 | . 3 1 3 7 19 8 2 4 . 1 5 17 6 2 . 9 3 5 3 . 3 . Fast Attach 115 | . 1 . . 1 6 10 2 1 . 4 11 23 10 2 4 12 3 11 4 1 6 3 Attach 63 | . 2 . . . 8 4 . . . 3 7 10 3 3 4 1 . 6 2 . . 10 Detach 22 | . 1 . . . 1 . 1 1 . 2 4 3 3 . 1 2 . 2 1 . . . Swap 87 | . 1 . . 1 4 8 4 2 . 10 4 21 8 . 1 5 4 1 4 . 2 7 Drop 133 | . 5 . 1 1 15 17 5 5 2 2 1 29 15 . 2 12 4 3 3 1 8 2 Fire 594 | . 13 9 . 6 47 40 17 13 . 58 9 102 18 23 40 12 3 72 8 . 17 87 Melee 30 | . . . . . . . . 3 . . 10 16 . . . . . . 1 . . . Ram . | . . . . . . . . . . . . . . . . . . . . . . . Kick 2 | . . . . . . . . . . . . 1 1 . . . . . . . . . Crush 3 | . . . . . 3 . . . . . . . . . . . . . . . . . Escape Stasis 12 | . . . . . . 2 . . . . . 10 . . . . . . . . . . Rewire 117 | . . . . . . . . . . . . 117 . . . . . . . . . . Trap 1 | . . . . . . . . . . . . . . . 1 . . . . . . . Miscellaneous . | . . . . . . . . . . . . . . . . . . . . . . . Route ------- -11/Scrapyard -10/Materials (discovered 2 exits: [*Mat] / *Min) -10/Mines (discovered 3 exits: [*Mat x2] / *Exi) -10/Exiles (discovered 2 exits: *Min x2) -9/Mines -8/Materials (discovered 3 exits: *Fac x3) -7/Factory (discovered 4 exits: *Sto x2 / *Low x2) -7/Lower Caves -7/Lower Caves -7/Data Miner -6/Proximity Caves -6/Factory -6/Extension (discovered 3 exits: *Fac x2 / *Cet) -5/Factory (discovered 2 exits: *Upp x2) -5/Upper Caves -5/Upper Caves (discovered 2 exits: *Fac / *War) -5/Warlord -4/Proximity Caves -4/Factory (discovered 2 exits: [*Res] / *Upp) -4/Upper Caves -4/Upper Caves -4/Zhirov -3/Proximity Caves (discovered 1 exit: [*Res]) History --------- Turn | Location | Event 17 | -11/Scrapyard | Discovered new exit (range 2) 63 | -11/Scrapyard | Entered Materials 302 | -10/Materials | Discovered new exit (range 10) 303 | -10/Materials | Build established: Mutant 768 | -10/Materials | Identified exit to Mines 858 | -10/Materials | Entered Mines 955 | -10/Mines | Discovered new exit (range 14) 1070 | -10/Mines | Discovered new exit (range 12) 1288 | -10/Mines | Deemed a non-threat by the Exiles lab entrance 1288 | -10/Mines | Discovered new exit (range 5) 1298 | -10/Mines | Entered Exiles 1346 | -10/Exiles | Discovered new exit (range 14) 1423 | -10/Exiles | Met 8R-AWN 1459 | -10/Exiles | Met EX-HEX 1543 | -10/Exiles | Met EX-BIN 1570 | -10/Exiles | Met EX-DEC 1620 | -10/Exiles | Learned location of Zion (-6) 1763 | -10/Exiles | Visited The Gauntlet 2154 | -10/Exiles | Discovered new exit (range 10) 2173 | -10/Exiles | Entered Mines 2402 | -9/Mines | Met a Derelict who couldn't figure out how to use a Trap Extractor 2542 | -9/Mines | Discovered new exit (range 14) 2569 | -9/Mines | Entered Materials 2569 | -8/Materials | Evolved 4 slots: Power x1, Propulsion x1, Utility x2 2587 | -8/Materials | Identified exit to Factory 3759 | -8/Materials | Entered Factory 3759 | -7/Factory | Evolved 2 slots: Utility x2 4391 | -7/Factory | Identified exit to Storage 4391 | -7/Factory | Identified exit to Lower Caves 4504 | -7/Factory | Build established: Hacker-Mutant 4648 | -7/Factory | Central database locked down 5065 | -7/Factory | Repaired Med. Treads 5715 | -7/Factory | Repaired Hrd. Medium Armor Plating 5736 | -7/Factory | Entered Lower Caves 6081 | -7/Lower Caves | Found Imp. Powered Armor 6261 | -7/Lower Caves | Attracted the attention of an 0b10 checkpoint 6437 | -7/Lower Caves | Discovered new exit (range 10) 6461 | -7/Lower Caves | Entered another Lower Caves area 7118 | -7/Lower Caves | Discovered new exit (range 9) 7119 | -7/Lower Caves | Encountered a Warlord checkpoint 7150 | -7/Lower Caves | Entered Data Miner 7151 | -7/Data Miner | Discovered new exit (range 6) 7197 | -7/Data Miner | Met Data Miner 7262 | -7/Data Miner | Acquired the access code to Warlord's prototype stash 7262 | -7/Data Miner | Learned location of Section 7 (-2) 7319 | -7/Data Miner | Received God Mode back door access code from Data Miner 7375 | -7/Data Miner | Entered Proximity Caves 7477 | -6/Proximity Caves | Attracted the attention of an 0b10 base 7479 | -6/Proximity Caves | Escorted by Enhanced Grunt 7585 | -6/Proximity Caves | Found Prototype Device 7585 | -6/Proximity Caves | Identified Exp. Thermal Shield 7626 | -6/Proximity Caves | Learned Research security intel 7626 | -6/Proximity Caves | Learned Extension stockpile data 7807 | -6/Proximity Caves | Attracted the attention of an 0b10 checkpoint 8477 | -6/Proximity Caves | Lost 6 parts (2p1n2u1w) 8578 | -6/Proximity Caves | Discovered new exit (range 14) 8623 | -6/Proximity Caves | Entered Factory 8623 | -6/Factory | Evolved 2 slots: Utility x2 8845 | -6/Factory | Lost 6 parts (1p1n2u2w) 9165 | -6/Factory | Incoming investigation squad redirected 9253 | -6/Factory | Build established: Scavenger-Mutant 9353 | -6/Factory | Discovered new exit (range 24) 9501 | -6/Factory | Entered Extension 9690 | -6/Extension | Core integrity fell below 50% 10136 | -6/Extension | Lost 4 parts (2p1n1u) 10378 | -6/Extension | Incoming investigation squad redirected 10425 | -6/Extension | Rescued a captive Derelict 10526 | -6/Extension | Rescued a captive Derelict 10570 | -6/Extension | Rescued a captive Derelict 10571 | -6/Extension | Rescued a captive Derelict 10626 | -6/Extension | Build established: Mutant 11018 | -6/Extension | Build established: Commander-Mutant 11049 | -6/Extension | Spotted B-75 Beast 11068 | -6/Extension | Allies destroyed B-75 Beast 11088 | -6/Extension | Spotted B-75 Beast 11094 | -6/Extension | Allies destroyed B-75 Beast 11101 | -6/Extension | Disrupted transfer network 11278 | -6/Extension | Disrupted transfer network 11696 | -6/Extension | Build established: Scavenger-Mutant 11800 | -6/Extension | Lost 3 parts (1p2w) 11941 | -6/Extension | Discovered new exit (range 3) 12004 | -6/Extension | Rescued A7 12069 | -6/Extension | Rescued a captive Derelict 12323 | -6/Extension | Rescued a captive Derelict 12452 | -6/Extension | Identified exit to Cetus 12478 | -6/Extension | Rescued a captive Derelict 12552 | -6/Extension | Discovered new exit (range 10) 12593 | -6/Extension | Identified exit to Factory 12603 | -6/Extension | Entered Factory 12603 | -5/Factory | Accompanied by 12 allies (A7) 12603 | -5/Factory | Evolved 2 slots: Propulsion x1, Utility x1 12604 | -5/Factory | Identified exit to Upper Caves 12646 | -5/Factory | Repaired Hcp. Storage Unit 12969 | -5/Factory | Repaired Imp. Force Field 13203 | -5/Factory | Repaired Med. Reflective Plating 13326 | -5/Factory | Build established: Hacker-Mutant 13436 | -5/Factory | Incoming investigation squad redirected 13475 | -5/Factory | Lost 3 parts (1u2w) 13479 | -5/Factory | Entered Upper Caves 13729 | -5/Upper Caves | Encountered a Warlord checkpoint 13977 | -5/Upper Caves | Attracted the attention of an 0b10 outpost 14038 | -5/Upper Caves | Destroyed 7 combat bots 14040 | -5/Upper Caves | Lost 4 parts (2p1n1u) 14100 | -5/Upper Caves | Discovered new exit (range 9) 14139 | -5/Upper Caves | Identified exit to Upper Caves 14141 | -5/Upper Caves | Entered another Upper Caves area 14168 | -5/Upper Caves | Identified exit to Warlord 14227 | -5/Upper Caves | Discovered new exit (range 7) 14236 | -5/Upper Caves | Identified exit to Factory 14462 | -5/Upper Caves | Attracted the attention of an 0b10 base 14531 | -5/Upper Caves | Destroyed 10 combat bots 14537 | -5/Upper Caves | Lost 4 parts (2n1u1w) 14586 | -5/Upper Caves | Learned Extension garrison access intel 14586 | -5/Upper Caves | Learned Extension emergency access door positions 14586 | -5/Upper Caves | Learned Armory trap positions 14586 | -5/Upper Caves | Learned 6 Lower Caves zone layouts 14586 | -5/Upper Caves | Learned 8 Research zone layouts 14933 | -5/Upper Caves | Entered Warlord 14975 | -5/Warlord | System corruption cleaned by Quarantine Array 15306 | -5/Warlord | Met Warlord 15323 | -5/Warlord | Opened Warlord's prototype stash 15330 | -5/Warlord | Found Prototype Reactor 15330 | -5/Warlord | Identified Vortex Chain Reactor 15331 | -5/Warlord | Warlord's base attacked by MAIN.C 15340 | -5/Warlord | Found Prototype Device 15340 | -5/Warlord | Identified Exp. Cloaking Device 15349 | -5/Warlord | Found Prototype Device 15349 | -5/Warlord | Identified Thermal Barrier 15352 | -5/Warlord | Found Prototype Processor 15352 | -5/Warlord | Identified Spectral Analyzer 15453 | -5/Warlord | Learned location of Armory (-3) 15453 | -5/Warlord | Learned Armory trap positions 15453 | -5/Warlord | Learned Armory stockpile data 15457 | -5/Warlord | Learned Armory security intel 15457 | -5/Warlord | Learned Factory scanalyzer intel 15457 | -5/Warlord | Learned Factory fabricator intel 15457 | -5/Warlord | Learned Armory scanalyzer intel 15597 | -5/Warlord | Found Prototype Energy Gun 15600 | -5/Warlord | Found Prototype Energy Gun 15605 | -5/Warlord | Found Prototype Energy Cannon 15608 | -5/Warlord | Found Prototype Energy Cannon 15681 | -5/Warlord | Warlord forces counterattacked 16006 | -5/Warlord | Warlord base infiltrated, sounded retreat 16148 | -5/Warlord | Spotted Striker 16149 | -5/Warlord | Spotted Striker 16152 | -5/Warlord | Identified Vortex Cannon (x2) 16155 | -5/Warlord | Destroyed Striker 16161 | -5/Warlord | Identified Vortex Rail (x2) 16166 | -5/Warlord | Spotted Executioner 16181 | -5/Warlord | System corruption reached 10% 16195 | -5/Warlord | Discovered new exit (range 13) 16222 | -5/Warlord | Entered Proximity Caves 16730 | -4/Proximity Caves | Learned 4 Research zone layouts 17006 | -4/Proximity Caves | Attracted the attention of an 0b10 checkpoint 17086 | -4/Proximity Caves | Discovered exit to Factory (range 14) 17109 | -4/Proximity Caves | Entered Factory 17109 | -4/Factory | Evolved 2 slots: Utility x1, Weapon x1 17110 | -4/Factory | Loaded intel: 6 fabricator locations 17111 | -4/Factory | Loaded intel: 4 scanalyzer locations 17337 | -4/Factory | Discovered new exit (range 23) 17414 | -4/Factory | Build established: Hacker-Tank 17476 | -4/Factory | Lost 5 parts (2p2n1u) 17539 | -4/Factory | Lost 3 parts (1n1u1w) 17746 | -4/Factory | Lost 5 parts (1p1n1u2w) 17868 | -4/Factory | Discovered new exit (range 8) 17899 | -4/Factory | Entered Upper Caves 18042 | -4/Upper Caves | Build established: Scavenger-Gunner 18370 | -4/Upper Caves | Found Alien Artifact 18370 | -4/Upper Caves | Identified Dimensional Node Initializer 18370 | -4/Upper Caves | Initialized slip node 18476 | -4/Upper Caves | Attracted the attention of an 0b10 checkpoint 18647 | -4/Upper Caves | Discovered new exit (range 8) 18666 | -4/Upper Caves | Entered another Upper Caves area 18976 | -4/Upper Caves | Discovered new exit (range 32) 19176 | -4/Upper Caves | Entered Zhirov 19176 | -4/Zhirov | Discovered new exit (range 3) 19211 | -4/Zhirov | Met Zhirov 19234 | -4/Zhirov | Build established: Derelict-Gunner 19247 | -4/Zhirov | Learned location of Command (-1) 19256 | -4/Zhirov | Learned location of Testing (-3) 19256 | -4/Zhirov | Learned location of Quarantine (-2) 19285 | -4/Zhirov | Zhirov requested help retrieving the SGEMP Prototype 19321 | -4/Zhirov | Found Alien Artifact 19321 | -4/Zhirov | Identified Integrated Dissipator 19321 | -4/Zhirov | Installed Integrated Dissipator, increased core heat dissipation (+20) 19355 | -4/Zhirov | Found Alien Artifact 19652 | -4/Zhirov | Entered Proximity Caves 19764 | -3/Proximity Caves | Spotted B-86 Titan 19824 | -3/Proximity Caves | Build established: Derelict-Mutant 19845 | -3/Proximity Caves | Attracted the attention of an 0b10 checkpoint 19911 | -3/Proximity Caves | Lost 3 parts (1n2w) 20211 | -3/Proximity Caves | Spotted B-86 Titan 20212 | -3/Proximity Caves | Entered a huge 0b10 base via the front door 20238 | -3/Proximity Caves | Core integrity fell below 50% 20239 | -3/Proximity Caves | Destroyed B-86 Titan 20268 | -3/Proximity Caves | Lost 4 parts (1n1u2w) 20431 | -3/Proximity Caves | Lost 4 parts (3n1w) 20699 | -3/Proximity Caves | Build established: Mutant 20787 | -3/Proximity Caves | Discovered new exit (range 8) 20831 | -3/Proximity Caves | Core integrity fell below 20% 20885 | -3/Proximity Caves | Lost 8 parts (2p2u4w) 20890 | -3/Proximity Caves | Destroyed by S-43 Plague with Heavy Machine Gun Last Messages --------------- 20799_ Adv. Heat Sink destroyed. 20800_ Storage Shell breached. 20803_ Hvy. Antimatter Reactor destroyed. 20807_ Storage Shell breached. 20813_ S-43 Plague destroyed. 20814_ Imp. Arc Projector destroyed. 20816_ Door Terminal disabled. 20818_ Hvy. Machine Gun fries itself beyond repair. 20823_ Beamcaster destroyed. 20824_ Rnf. Antimatter Reactor destroyed. 20827_ Xenon Bombardment Thruster fries itself beyond repair. 20830_ LBAXUMPL<1,4&3Q6=G MZ 20831_ Melted Hvy. Machine Gun. 20831_ S-43 Plague critical meltdown. 20831_ Xenon Bombardment Thruster melted. 20841_ Destroyed Xenon Bombardment Thruster. 20845_ S-43 Plague heat spikes uncontrollably. 20845_ S-43 Plague destroyed. 20854_ Variable Charge Gun destroyed. 20884_ Acquired Adv. Reaction Control System. Map ----- +----------------------------------------------------+ | ???????????????????????????????????????????? | | ???????????????????????????????????????????? | | ???????????????????????????????????????????? | | ???????????????????????????????????????????? | | ???????????????????????????????????????????? | | ???????????????????????????????????????????? | | ???????????????????????????????????????????? | | ???????????????????????????????????????????? | | ???????????????????????????????????????????? | | ???????????????????????????????????????????? | | ???????????????????????????????????????????? | | ???????????????????????????????????????????? | | ???????????????????????????????????????????? | | ???????????????????????????????????????????? | | ???????????????????????????????????????????? | | ????????????????########???????????????????? | | ????????????????# "???????????????????? | | ?????????#??????# ???????????????????? | | ?????????#|?????# "???????????????????? | | ??##+######+##### """?????????????????? | | ?? ^ %% ??????????????????? | | ?? %